Cogmind - Beta 14 @@@ ROGUE MODE // 2025.01.03 @ 23:46:01 Player: Byrnorthil Result: Destroyed by S-10 Pest with Light Assault Rifle Performance ------------- Evolutions (0) 0 Regions Visited (3) 600 Robots Destroyed (23) 115 Value Destroyed (720) 720 Prototype IDs (0) 0 Alien Tech Used (0) 0 Bonus (0) 0 TOTAL SCORE: 1435 Bonus ------- None Cogmind --------- Core Integrity 0/250 Matter 275/300 Energy 174/200 System Corruption 0% Temperature Cool (0) Movement Rolling (110) Location -10/Subcaves Parts ------- > --- POWER (1) -------- Subdweller Power Source > --- PROPULSION (2) --- Subdweller Monowheel Subdweller Monowheel > --- UTILITY (2) ------ Scrap Shield > --- WEAPON (2) ------- Subdweller Beam Cannon Battle Cannon > --- INVENTORY (5) ---- Subdweller Power Source Subdweller Optics Subdweller Beam Cannon Subdweller Machine Gun Rocket Launcher Peak State ------------ > --- POWER ------------ Ion Engine > --- PROPULSION ------- Carbon-fiber Leg Carbon-fiber Leg > --- UTILITY ---------- Large Storage Unit Makeshift Light Armor Plating > --- WEAPON ----------- Light Assault Rifle Light Assault Rifle > --- INVENTORY -------- Ion Engine Light Ion Engine Improved Heat Sink Improved Heat Sink Large Storage Unit High-capacity Matter Pod Signal Interpreter Tractor Beam Beamcaster Light Assault Rifle Light Assault Rifle Subdweller Machine Gun Rocket Launcher Datajack Piercing Trap [Rating: 16] Favorites ----------- Power Ion Engine Engine Ion Engine Propulsion Light Treads Treads Light Treads Leg Carbon-fiber Leg Wheel Subdweller Monowheel Utility Large Storage Unit Device Tractor Beam Storage Large Storage Unit Protection Scrap Shield Weapon Light Assault Rifle Energy Gun Subdweller Laser Energy Cannon Subdweller Beam Cannon Ballistic Gun Light Assault Rifle Ballistic Cannon Battle Cannon Build | -11 -10 -10 -10 ------- Run | Yrd Mat Min Sub Slots Evolved . | . . . . Power . | . . . . Propulsion . | . . . . Utility . | . . . . Weapon . | . . . . Parts Attached 33 | 6 4 . 23 Power 4 | 1 . . 3 Engine 4 | 1 . . 3 Core . | . . . . Reactor . | . . . . Propulsion 11 | 2 2 . 7 Treads 3 | . 2 . 1 Leg 4 | 2 . . 2 Wheel 4 | . . . 4 Hover . | . . . . Flight . | . . . . Utility 7 | 1 2 . 4 Device 1 | . 1 . . Storage 2 | 1 1 . . Processor . | . . . . Hackware . | . . . . Protection 4 | . . . 4 Artifact . | . . . . Weapon 11 | 2 . . 9 Energy Gun 3 | . . . 3 Energy Cannon 3 | . . . 3 Ballistic Gun 4 | 2 . . 2 Ballistic Cannon 1 | . . . 1 Launcher . | . . . . Special Weapon . | . . . . Impact Weapon . | . . . . Slashing Weapon . | . . . . Piercing Weapon . | . . . . Special Melee Weapon . | . . . . Unidentified Prototypes . | . . . . Parts Lost 4 | . . . 4 Power . | . . . . Propulsion 2 | . . . 2 Utility 1 | . . . 1 Weapon 1 | . . . 1 Highest Loss Streak 1 | . . . 1 To Critical Strikes . | . . . . Average Slot Usage (%) 91 | . 85 100 89 Engine 14 | . 14 14 14 Treads 14 | . 7 28 9 Leg 6 | . 20 . 6 Wheel 7 | . . . 11 Device 4 | . . 14 . Storage 8 | . 14 14 5 Protection 7 | . . . 12 Energy Gun 1 | . . . 2 Energy Cannon 3 | . . . 6 Ballistic Gun 20 | . 28 28 15 Ballistic Cannon 2 | . . . 3 Peak Build Rating 16 | 6 7 8 16 Average Rating 10 | 4 6 7 13 On Entrance 5 | . 6 7 8 Naked Turns . | . . . . Heaviest Build 35 | 12 28 28 35 Greatest Support 40 | 20 40 40 40 Greatest Overweight (x) 10 | 2 . . 10 Average Overweight (x) . | . . . . Largest Inventory Capacity 15 | 8 15 15 15 Average Capacity 10 | 6 9 15 8 Most Carried 15 | 4 8 14 15 Average Carried 8 | 1 6 11 8 Final Capacity 15 | 8 15 15 5 Final Carried 14 | 4 7 14 5 Class Distribution -------------------- 65% | Mutant 34% | Subdweller-Mutant Dominant Class ---------------- Mutant | -10/Materials Mutant | -10/Mines Subdweller-Mutant | -10/Subcaves Resources | -11 -10 -10 -10 ----------- Run | Yrd Mat Min Sub Matter Collected 929 | 202 153 228 346 Remotely 228 | . . 228 . Salvage Created 1050 | . 237 129 684 Parts 54 | . 9 6 39 Haulers Intercepted 1 | . 1 . . Recyclers Shooed . | . . . . Parts Field Recycled . | . . . . Retrieved Matter . | . . . . Parts Self-Destructed 13 | . . . 13 Prevented . | . . . . Kills | -11 -10 -10 -10 ------- Run | Yrd Mat Min Sub Combat Hostiles Destroyed 21 | . 4 4 13 Guns 13 | . 4 4 5 Cannons 8 | . . . 8 Classes Destroyed 6 | . 3 1 2 Hauler 1 | . 1 . . Watcher 1 | . 1 . . Swarmer 4 | . . 2 2 Grunt 6 | . 4 2 . Sentry 1 | . . . 1 Subdweller 10 | . . . 10 Best Kill Streak 2 | . 2 2 2 Combat Bots Only 2 | . 1 2 2 Max Kills in Single Turn 1 | . 1 1 1 Gunslinging . | . . . . Exploded . | . . . . Melee . | . . . . Uniques/NPCs Destroyed . | . . . . Combat | -11 -10 -10 -10 -------- Run | Yrd Mat Min Sub Hostile Shots Fired 132 | . 16 27 89 Missed 41 | . 5 6 30 Damage Taken 1509 | . 125 215 1169 Core 257 | . 57 45 155 Absorbed by Shields . | . . . . Core Remaining (%) 100 | 100 . . . Volleys Fired 106 | . 31 15 60 Largest 2 | . 2 2 2 Hottest 120 | . 40 40 120 Shots Fired 201 | . 62 30 109 Gun 141 | . 62 30 49 Cannon 60 | . . . 60 Launcher . | . . . . Special . | . . . . Kinetic 155 | . 62 30 63 Thermal 46 | . . . 46 Explosive . | . . . . Electromagnetic . | . . . . Robot Hit Streak 20 | . 12 12 20 Robot Miss Streak 5 | . 1 3 5 Penetration Max . | . . . . Secondary Targets 3 | . . 2 1 Max Gunslinging Chain 1 | . . 1 1 Shots Hit Robots 136 | . 51 19 66 Core Hits 46 | . 14 8 24 Critical Kills 3 | . 2 . 1 Critical Parts Destroyed . | . . . . Critical Strikes 3 | . 2 . 1 Destroy 3 | . 2 . 1 Melee Attacks . | . . . . Impact . | . . . . Slashing . | . . . . Piercing . | . . . . Sneak Attacks . | . . . . Combat Hostiles . | . . . . Follow-up Attacks . | . . . . Damage Inflicted 1760 | . 437 167 1156 Guns 1055 | . 431 156 468 Cannons 688 | . . . 688 Explosions . | . . . . Melee . | . . . . Ramming 17 | . 6 11 . Kinetic 1116 | . 431 156 529 Thermal 627 | . . . 627 Explosive . | . . . . Electromagnetic . | . . . . Impact . | . . . . Slashing . | . . . . Piercing . | . . . . Highest Corruption . | . . . . Average Corruption . | . . . . Corruption Purged . | . . . . Corruption Blocked . | . . . . Overload Shots . | . . . . Overflow Damage . | . . . . Projectiles . | . . . . Explosions . | . . . . Melee . | . . . . Knockbacks 5 | . . . 5 Impact . | . . . . Kinetic 5 | . . . 5 Secondary . | . . . . Self-Inflicted Damage . | . . . . Shots . | . . . . Rammed 3 | . . 3 . Targets Rammed 4 | . 1 3 . Kicked 1 | . 1 . . Crushed . | . . . . Highest Temperature 47 | . 12 35 47 Average Temperature 17 | . 6 14 22 Received Heat Transfer 381 | . 66 84 231 Siege Activations . | . . . . Robots Corrupted . | . . . . Combat Hostiles . | . . . . Parts Fried . | . . . . Impact Corruptions . | . . . . Robots Melted . | . . . . Combat Hostiles . | . . . . Parts Melted 1 | . . . 1 Heat Transferred 804 | . . . 804 Parts Sabotaged . | . . . . Parts Stolen . | . . . . Parts Stripped . | . . . . Power Chain Reactions . | . . . . Alert | -11 -10 -10 -10 ------- Run | Yrd Mat Min Sub Peak Influence 154 | . 141 154 . Initial 54 | . . 54 . Average 56 | . 59 59 . Maximum Alert Level . | . . . . Low Security (%) 100 | 100 100 100 . Level 1 . | . . . . Level 2 . | . . . . Level 3 . | . . . . Level 4 . | . . . . Level 5 . | . . . . High Security . | . . . . Max Security . | . . . . Squads Dispatched 2 | . 2 . . Investigation 2 | . 2 . . Extermination . | . . . . Reinforcement . | . . . . Assault . | . . . . Garrison . | . . . . Intercept . | . . . . Searches Triggered . | . . . . Construction Impeded . | . . . . Haulers Reinforced . | . . . . Active Scanning Responses . | . . . . Cargo Convoy Interrupts . | . . . . Stealth | -11 -10 -10 -10 --------- Run | Yrd Mat Min Sub Distress Signals 1 | . 1 . . Communications Jammed . | . . . . Distress Signals . | . . . . Times Spotted 29 | . 7 5 17 Peak Tracking Total 5 | . 2 3 5 Tactical Retreats 1 | . . . 1 Traps | -11 -10 -10 -10 ------- Run | Yrd Mat Min Sub Traps Triggered 2 | . 1 . 1 Indirectly . | . . . . Trap Hack Attempts . | . . . . Triggered . | . . . . Disarmed . | . . . . Reprogrammed . | . . . . Reused . | . . . . Traps Extracted . | . . . . Installed 1 | . . . 1 Triggered . | . . . . Most Traps Carried 1 | . . . 1 Machines | -11 -10 -10 -10 ---------- Run | Yrd Mat Min Sub Machines Disabled . | . . . . Max in Single Turn . | . . . . Machines Repaired . | . . . . Machines Dismantled . | . . . . Machines Sabotaged . | . . . . Overloaded Fab Kills . | . . . . Hacking | -11 -10 -10 -10 --------- Run | Yrd Mat Min Sub Machines Accessed 3 | . 3 . . Terminals 2 | . 2 . . Fabricators . | . . . . Repair Stations . | . . . . Recycling Units 1 | . 1 . . Scanalyzers . | . . . . Garrison Access . | . . . . Total Hacks 16 | . 16 . . Successful 9 | . 9 . . Failed 7 | . 7 . . Catastrophic 1 | . 1 . . Database Lockouts . | . . . . Manual 16 | . 16 . . Terminals 13 | . 13 . . Fabricators . | . . . . Repair Stations . | . . . . Recycling Units 3 | . 3 . . Scanalyzers . | . . . . Garrison Access . | . . . . Terminal Hacks 2 | . 2 . . Robot Analysis 2 | . 2 . . Fabricator Hacks . | . . . . Repair Station Hacks . | . . . . Recycling Unit Hacks 1 | . 1 . . Report Inventory 1 | . 1 . . Scanalyzer . | . . . . Garrison Access Hacks . | . . . . Unauthorized Hacks 6 | . 6 . . Terminals 5 | . 5 . . Track 2 | . 2 . . Botnet 2 | . 2 . . Operators 1 | . 1 . . Fabricators . | . . . . Repair Stations . | . . . . Recycling Units 1 | . 1 . . Mask 1 | . 1 . . Scanalyzers . | . . . . Garrison Access . | . . . . Data Cores Recovered . | . . . . Used . | . . . . Hacking Detections 2 | . 2 . . Full Trace Events 2 | . 2 . . Feedback Events . | . . . . Feedback Blocked . | . . . . Robot Schematics Acquired . | . . . . Robots Built . | . . . . Authchips . | . . . . Time . | . . . . Total Robot Build Rating . | . . . . Part Schematics Acquired . | . . . . Parts Built . | . . . . Authchips . | . . . . Time . | . . . . Total Part Build Rating . | . . . . Parts Repaired . | . . . . Time . | . . . . Parts Recycled . | . . . . Recycled Matter . | . . . . Retrieved Matter . | . . . . Retrieved Components . | . . . . Parts Scanalyzed . | . . . . Part Schematics Acquired . | . . . . Parts Damaged . | . . . . Bothacking | -11 -10 -10 -10 ------------ Run | Yrd Mat Min Sub Used RIF Installer . | . . . . Robots Hacked . | . . . . Non-combat . | . . . . Combat . | . . . . Robot Hacks Applied . | . . . . Relay Couplers Released . | . . . . Fabnet Peak Effective % . | . . . . Robots Rewired . | . . . . Allies Hacked . | . . . . Hacks Repelled . | . . . . Allies | -11 -10 -10 -10 -------- Run | Yrd Mat Min Sub Total Allies 1 | . . 1 . Largest Group 1 | . . 1 1 Highest-Rated Group 31 | . . 31 31 Highest-Rated Ally 31 | . . 31 31 Total Orders . | . . . . Ally Attacks 9 | . . . 9 Total Damage 127 | . . . 127 Kills . | . . . . Allies Corrupted . | . . . . Allies Melted . | . . . . Intel | -11 -10 -10 -10 ------- Run | Yrd Mat Min Sub Robot Analysis Total 2 | . 2 . . Derelict Logs Recovered 3 | . . 3 . Drone Launches . | . . . . Drone Recoveries . | . . . . Exploration | -11 -10 -10 -10 ------------- Run | Yrd Mat Min Sub Turns Passed 3235 | 74 364 858 1939 Spaces Moved 1989 | 55 201 468 1265 Core 23 | 22 . . 1 Treads 882 | . 51 468 363 Legs 460 | 33 150 . 277 Wheels 624 | . . . 624 Hover . | . . . . Flight . | . . . . Fastest Speed 50 | 50 120 160 110 Average Speed 138 | 112 130 160 132 Slowest Speed 550 | 150 160 160 550 Overloaded Moves . | . . . . Propulsion Burnouts . | . . . . Robots Hopped . | . . . . Cave-ins Triggered . | . . . . Exploration Rate (%) 47 | 4 35 82 67 Regions Visited 3 Branch Regions 2 Pre-discovered Areas 1 | . . 1 . Known Exits Taken 1 | . . 1 . Unknown Exits Taken 2 | 1 1 . . Scrap Searched 11 | . . 1 10 Spaces Dug . | . . . . Terrain Destroyed 6 | . . . 6 Melee . | . . . . Projectile 6 | . . . 6 AOE . | . . . . Terrain Rammed . | . . . . Walls Destroyed . | . . . . Machines Disabled . | . . . . Actions | -11 -10 -10 -10 --------- Run | Yrd Mat Min Sub Total 2302 | 64 254 552 1432 Wait 91 | . 11 60 20 Move 1986 | 54 200 467 1265 Hop . | . . . . Pick Up 30 | 4 5 7 14 Fast Attach 19 | 6 1 . 12 Attach 5 | . 2 . 3 Detach 2 | . . . 2 Swap 9 | . 1 . 8 Drop 37 | . 2 . 35 Fire 106 | . 31 15 60 Melee . | . . . . Ram . | . . . . Kick 1 | . 1 . . Crush 3 | . . 3 . Escape Stasis . | . . . . Rewire . | . . . . Trap 1 | . . . 1 Miscellaneous 12 | . . . 12 Route ------- -11/Scrapyard -10/Materials -10/Mines (discovered 3 exits: [*Mat x2] / *Sub) -10/Subcaves (discovered 1 exit: [*Rec]) History --------- Turn | Location | Event 6 | -11/Scrapyard | Discovered new exit (range 15) 75 | -11/Scrapyard | Entered Materials 304 | -10/Materials | Build established: Mutant 406 | -10/Materials | Discovered new exit (range 8) 439 | -10/Materials | Entered Mines 453 | -10/Mines | Met a Derelict bent on vengeance 494 | -10/Mines | Learned location of Zion (-6) 535 | -10/Mines | Discovered new exit (range 9) 759 | -10/Mines | Received a Rocket Launcher from a helpful Derelict 794 | -10/Mines | Learned Materials security intel 806 | -10/Mines | Escorted by a lone wolf Derelict 952 | -10/Mines | Discovered new exit (range 8) 1090 | -10/Mines | Identified exit to Subcaves 1297 | -10/Mines | Entered Subcaves 1297 | -10/Subcaves | Accompanied by 1 ally 2185 | -10/Subcaves | A swath of the cavern ceiling suddenly collapsed 2337 | -10/Subcaves | A swath of the cavern ceiling suddenly collapsed 2340 | -10/Subcaves | Build established: Subdweller-Mutant 2534 | -10/Subcaves | Disturbed a concealed Subdweller 2644 | -10/Subcaves | Disturbed a concealed Subdweller 2645 | -10/Subcaves | Disturbed a concealed Subdweller 2646 | -10/Subcaves | Core integrity fell below 50% 2656 | -10/Subcaves | Core integrity fell below 20% 2754 | -10/Subcaves | Shifting Twisted Machinery released Sub. Optics 2755 | -10/Subcaves | Shifting Twisted Machinery released Flamer 3225 | -10/Subcaves | Discovered new exit (range 10) 3236 | -10/Subcaves | Destroyed by S-10 Pest with Light Assault Rifle Last Messages --------------- 03025_ Dropped Broken Sub. Beam Cannon. 03027_ HM-I5V(R) destroyed. 03030_ Acquired 35 matter. 03034_ Acquired 5 matter. 03036_ 45-HB5(R) destroyed. 03041_ Acquired Sub. Machine Gun. 03042_ Acquired 5 matter. 03124_ Y-45 Defender destroyed. 03129_ Heat Sink fries itself beyond repair. 03131_ Acquired 10 matter. 03136_ Imp. Ion Engine fries itself beyond repair. 03137_ Lgt. Treads fries itself beyond repair. 03138_ Lgt. Armor Plating fries itself beyond repair. 03167_ Scrap Shield Fragment affixed to Scrap Shield (+41). 03169_ Scrap Shield Fragment affixed to Scrap Shield (+17). 03215_ S-10 Pest destroyed. 03223_ S-10 Pest springs to life. 03225_ EXIT=FOUND 03232_ Lgt. Ion Engine fries itself beyond repair. 03234_ S-10 Pest destroyed. Map ----- +----------------------------------------------------+ | ??????????????????????????????#### & | | ??????????????????????????????# # # #" | | ??????????????????????????????## ## # #### | | ??????????????????????????????# ##### ### # | | ??????????????????????????????## ##?## ## # | | ???????????????????????????????# ### ### # | | ?????????????????????????????### ## ## ## | | ?????????????????????????????# ### ## | | ?????????????????????????????## ##?# ## | | ??????????????????????????????# ##??# ## | | ???????????????????????????#### ###### # | | ???????????????????????????# ### | | ??????????????????????????# #" ## | | ????????????????????????????## %"## # | | ????????????????????????????####* ## #### ## | | ????????????????????????????# ##%=### ???## ##?# | | ????????????????????????????# =%!# ##?## ##? | | ??????????????????##????????# ## *## ### #? | | ??????????????#####<##??????#?# #? | | ??????????????#"""" ""????????## #? | | ??????????????#" " " ?????##### #? | | ??????????????#" ?????# | | ??????????????# ????# ####### | | ??????????????#% ???## #?????? | | ??????????????#" "### ##????? # | | ????????????????## ""#;@ ### #?????? # | | ???????????????## s s ### #### #?????## | | ???????????????# % % ## #### #??????? | | ??????????????# ### #?????? | | ??????????????## ###???## #????? | | ???????????????#?????????## ??? | | ??????????????????????????#### ### ??? | | ?????????????????????????????#####?? ### ?? | | ????????????????????????????????????# #??# ?? | | ????????????????????????????????????? #??? ??? | | ????????????????????????????????????? ?????????? | | ????????????????????????????????????? ????????? | | ?????????????????????????????????????? ???????? | | ?????????????????????????????????????? #??????? | | ?????????????????????????????????????? ? ????????? | | ?????????????????????????????????????????????????? | | ?????????????????????????????????????????????????? | | ?????????????????????????????????????????????????? | | ?????????????????????????????????????????????????? | | "????????????????????????????????????????????????? | | #????????????????????????????????????????????????? | | ?????????????????????????????????????????????????? | | ?????????????????????????????????????????????????? | | ?????????????????????????????????????????????????? | | ?????????????????????????????????????????????????? | +----------------------------------------------------+ Best States ------------- Heat Dissipation 25 Energy Generation 15 Energy Capacity 250 Matter Stores 300 Matter Capacity 300 Sight Range 16 Terrain Scan Density 10 Armor Coverage 800 Evasion (%) 55 Recoil Reduction 2 Item Schematics ----------------- None Robot Schematics ------------------ None Fabricated ------------ Nothing Alien Tech Used ----------------- None Achievements -------------- None Challenges ------------ None Game ------ Seed BoreKineticStick Manual? 0 Play Time 00:31:58 Cumulative 137.2 hours Start 2025.01.03 @ 22:11:37 End 2025.01.03 @ 23:46:01 Sessions 1 Manual Loads 0 Difficulty Rogue Special Mode None Game No. 45 Rogue 45 Adventurer 0 Explorer 0 Win Type - Total 1 Types 1/0/0/0/0/0/0/0/0 Lore% 49 Gallery% 63 Achievement% 50 Wizard Run 0 Options --------- Layout 0 ASCII 0 Keyboard 1 Movement Arrows Keybinds 0 Fullscreen 2 Font 36/Terminus++ Map View 76x50 Zoom Use 0% Tactical HUD 1 Map Filters NONE Filters NONE Steam 1 RUN: 5232accb-ede2-4cdb-b5e3-787336eb66fa